fUSD/lending_fUSD_20240331
["ID","MTS","AMOUNT","RATE_DAILY","PERIOD"]
[321150513,1711912259423,-500.0,0.00056435,120]
[321150514,1711912259432,-500.0,0.00056435,120]
[321150515,1711912259441,-500.0,0.00056435,120]
[321150516,1711912259451,-500.0,0.00056435,120]
[321150517,1711912259460,-500.0,0.00056435,120]
[321150518,1711912259469,-500.0,0.00056435,120]
[321150519,1711912259478,-500.0,0.00056435,120]
[321150520,1711912259487,-500.0,0.00056435,120]
[321150521,1711912259497,-500.0,0.00056435,120]
[321150522,1711912259506,-500.0,0.00056435,120]
[321150523,1711912259515,-500.0,0.00056435,120]
[321150524,1711912259525,-500.0,0.00056435,120]
[321150525,1711912259534,-500.0,0.00056435,120]
[321150526,1711912259543,-500.0,0.00056435,120]
[321150527,1711912259553,-764.27,0.00056437,120]
[321150528,1711912259563,-500.0,0.00056438,120]
[321150529,1711912259571,-619.59,0.00056438,120]
[321150530,1711912259581,-183.5,0.00056438,120]
[321150531,1711912259590,-500.0,0.00056438,120]
[321150532,1711912259599,-500.0,0.00056438,120]
[321150533,1711912259608,-500.0,0.00056438,120]
[321150534,1711912259617,-544.28,0.00056438,120]
[321150535,1711912259626,-500.0,0.00056438,50]
[321150536,1711912259636,-500.0,0.00056438,120]
[321150537,1711912259645,-500.0,0.00056438,120]
[321150538,1711912259654,-640.67,0.00056438,120]
[321150539,1711912259663,-1467.9,0.00056438,120]
[321150540,1711912259672,-263.38,0.00056438,120]
[321150541,1711912259681,-6764.27,0.00056438,120]
[321150542,1711912259691,-567.74,0.00056438,120]
[321150543,1711912259701,-500.0,0.00056438,120]
[321150544,1711912259710,-500.0,0.00056438,120]
[321150545,1711912259719,-860.07,0.00056438,120]
[321150546,1711912259729,-1192.99,0.00056438,120]
[321150547,1711912259738,-1249.36,0.00056438,21]
[321150548,1711912259752,-500.0,0.00056438,120]
[321150549,1711912259761,-500.0,0.00056438,120]
[321150550,1711912259771,-814.12,0.00056438,120]
[321150551,1711912259780,-500.0,0.00056438,120]
[321150552,1711912259791,-500.0,0.00056438,120]
[321150553,1711912259801,-617.6,0.00056438,120]
[321150554,1711912259810,-678.55,0.00056438,120]
[321150555,1711912259822,-500.0,0.00056438,120]
[321150556,1711912259832,-500.0,0.00056438,120]
[321150557,1711912259842,-648.14,0.00056438,120]
[321150558,1711912259851,-611.97,0.00056438,120]
[321150559,1711912259860,-500.0,0.00056438,120]
[321150560,1711912259869,-723.57,0.00056438,120]
[321150561,1711912259878,-955.76,0.00056438,120]
[321150562,1711912259888,-533.04,0.00056438,120]
[321150563,1711912259898,-1479.22,0.00056438,120]
[321150564,1711912259907,-500.0,0.00056438,120]
[321150565,1711912259916,-891.31,0.00056438,120]
[321150566,1711912259926,-2510.49,0.00056438,120]
[321150567,1711912259938,-500.0,0.00056438,120]
[321150568,1711912259948,-500.0,0.00056438,120]
[321150569,1711912259957,-1612.29,0.00056438,120]
[321150570,1711912259966,-2390.26,0.00056438,120]
[321150571,1711912259976,-238.16,0.00056438,120]
[321150572,1711912259985,-500.0,0.00056438,120]
[321150573,1711912259994,-500.0,0.00056438,120]
[321150574,1711912260005,-500.0,0.00056438,120]
[321150575,1711912260015,-1950.2,0.00056438,120]
[321150576,1711912260024,-1183.67,0.00056438,120]
[321150577,1711912260034,-500.0,0.00056438,120]
[321150578,1711912260043,-1486.98,0.00056438,120]
[321150579,1711912260053,-769.12,0.00056438,120]
[321150580,1711912260063,-536.61,0.00056438,120]
[321150581,1711912260073,-500.0,0.00056438,120]
[321150582,1711912260083,-500.0,0.00056438,120]
[321150583,1711912260092,-541.06,0.00056438,120]
[321150584,1711912260101,-637.34,0.00056438,120]
[321150585,1711912260110,-949.35,0.00056438,120]
[321150586,1711912260120,-535.97,0.00056438,120]
[321150587,1711912260129,-1656.56,0.00056438,120]
[321150588,1711912260138,-163.36,0.00056438,120]
[321150589,1711912260149,-500.0,0.00056438,120]
[321150590,1711912260158,-641.17,0.00056438,120]
[321150591,1711912260170,-501.73,0.00056438,120]
[321150592,1711912260179,-500.0,0.00056438,120]
[321150593,1711912260190,-848.71,0.00056438,120]
[321150594,1711912260199,-1686.96,0.00056438,120]
[321150595,1711912260208,-723.69,0.00056438,120]
[321150596,1711912260217,-503.53,0.00056438,120]
[321150597,1711912260227,-1403.52,0.00056438,120]
[321150598,1711912260236,-246.11,0.00056438,120]
[321150599,1711912260245,-1181.38,0.00056438,120]
[321150600,1711912260255,-3493.9,0.00056438,120]
[321150601,1711912260264,-975.21,0.00056438,120]
[321150602,1711912260273,-806.03,0.00056438,120]
[321150603,1711912260282,-500.0,0.00056438,120]
[321150604,1711912260292,-3043.05,0.00056438,120]
[321150605,1711912260302,-6777.33,0.00056438,120]
[321150606,1711912260311,-500.0,0.00056438,120]
[321150607,1711912260320,-500.0,0.00056438,16]
[321150608,1711912260329,-5108.89,0.00056438,120]
[321150609,1711912260338,-3698.74,0.00056438,120]
[321150610,1711912260348,-500.0,0.00056438,120]
[321150611,1711912260357,-1483.74,0.00056438,120]
[321150612,1711912260366,-768.98,0.00056438,120]
[321150613,1711912260376,-500.0,0.00056438,120]
[321150614,1711912260386,-531.61,0.00056438,120]
[321150615,1711912260395,-631.59,0.00056438,120]
[321150616,1711912260404,-3249.07,0.00056438,120]
[321150617,1711912260414,-410.56,0.00056438,120]
[321150618,1711912260423,-598.11,0.00056438,120]
[321150619,1711912260432,-548.81,0.00056438,120]
[321150620,1711912260444,-1016.84,0.00056438,120]
[321150621,1711912260453,-916.96,0.00056438,120]
[321150622,1711912260462,-2060.57,0.00056438,120]
[321150623,1711912260472,-500.0,0.00056438,7]
[321150624,1711912260481,-500.0,0.00056438,120]
[321150625,1711912260491,-500.0,0.00056438,120]
[321150626,1711912260500,-500.0,0.00056438,120]
[321150627,1711912260510,-500.0,0.00056438,120]
[321150628,1711912260519,-500.0,0.00056438,120]
[321150629,1711912260528,-572.07,0.00056438,120]
[321150630,1711912260537,-1908.06,0.00056438,120]
[321150631,1711912260546,-1170.42,0.00056438,120]
[321150632,1711912260556,-3750.34,0.00056438,120]
[321150633,1711912260565,-500.0,0.00056438,120]
[321150634,1711912260574,-500.0,0.00056438,120]
[321150635,1711912260583,-706.75,0.00056438,120]
[321150636,1711912260593,-1737.44,0.00056438,120]
[321150637,1711912260602,-500.0,0.00056438,120]
[321150638,1711912260611,-4783.41,0.00056438,120]
[321150639,1711912260620,-2431.96,0.00056438,120]
[321150640,1711912260629,-570.4,0.00056438,120]
[321150641,1711912260639,-984.21,0.00056438,120]
[321150642,1711912260648,-4812.39,0.00056438,120]
[321150643,1711912260657,-500.0,0.00056438,120]
[321150644,1711912260666,-629.86,0.00056438,120]
[321150645,1711912260675,-515.53,0.00056438,120]
[321150646,1711912260686,-1392.38,0.00056438,120]
[321150647,1711912260696,-1049.1,0.00056438,120]
[321150648,1711912260705,-500.0,0.00056438,120]
[321150649,1711912260714,-533.22,0.00056438,120]
[321150650,1711912260724,-500.0,0.00056438,120]
[321150651,1711912260733,-531.47,0.00056438,120]
[321150652,1711912260742,-2600.45,0.00056438,120]
[321150653,1711912260754,-511.03,0.00056438,120]
[321150654,1711912260764,-500.0,0.00056438,120]
[321150655,1711912260774,-3323.86,0.00056438,120]
[321150656,1711912260783,-9313.43,0.00056438,120]
[321150657,1711912260792,-506.98,0.00056438,120]
[321150658,1711912260802,-721.08,0.00056438,120]
[321150659,1711912260811,-800.0,0.00056491,120]
[321150660,1711912260820,-423.92528569,0.00056609,34]
[321150661,1711912260831,-7541.29825587,0.00056619,2]
[321150662,1711912260841,-500.0,0.00056709,120]
[321150663,1711912260849,-500.0,0.00056709,120]
[321150664,1711912260858,-208.81487158,0.00056709,120]
[321150665,1711912260867,-500.0,0.00056709,120]
[321150666,1711912260876,-500.0,0.00056709,120]
[321150667,1711912260885,-500.0,0.00056709,120]
[321150668,1711912260894,-254.23696409,0.00056709,120]
[321150669,1711912260903,-500.0,0.00056709,120]
[321150670,1711912260912,-500.0,0.00056709,120]
[321150671,1711912260921,-500.0,0.00056709,120]
[321150672,1711912260929,-286.85937836,0.00056709,120]
[321150673,1711912260939,-500.0,0.00056709,120]
[321150674,1711912260948,-500.0,0.00056709,120]
[321150675,1711912260957,-500.0,0.00056709,120]
[321150676,1711912260966,-500.0,0.00056709,120]
[321150677,1711912260976,-693.57,0.00056709,120]
[321150678,1711912260985,-500.0,0.00056709,120]
[321150679,1711912260994,-500.0,0.00056709,120]
[321150680,1711912261003,-733.82,0.00056709,120]
[321150681,1711912261012,-500.0,0.00056709,120]
[321150682,1711912261021,-500.0,0.00056709,120]
[321150683,1711912261030,-500.0,0.00056709,120]
[321150684,1711912261039,-500.0,0.00056709,120]
[321150685,1711912261048,-647.93,0.00056709,120]
[321150686,1711912261057,-684.47,0.00056709,120]
[321150687,1711912261066,-500.0,0.00056709,120]
[321150688,1711912261075,-500.0,0.00056709,120]
[321150689,1711912261085,-500.0,0.00056709,120]
[321150690,1711912261094,-500.0,0.00056709,120]
[321150691,1711912261103,-500.0,0.00056709,120]
[321150692,1711912261112,-600.94,0.00056709,120]
[321150693,1711912261121,-500.0,0.00056709,120]
[321150694,1711912261131,-500.0,0.00056709,120]
[321150695,1711912261140,-500.0,0.00056709,120]
[321150696,1711912261149,-500.0,0.00056709,120]
[321150697,1711912261158,-500.0,0.00056709,120]
[321150698,1711912261168,-500.0,0.00056709,120]
[321150699,1711912261177,-500.0,0.00056709,120]
[321150700,1711912261188,-500.0,0.00056709,120]
[321150701,1711912261197,-500.0,0.00056709,120]
[321150702,1711912261206,-500.0,0.00056709,120]
[321150703,1711912261215,-500.0,0.00056709,120]
[321150704,1711912261226,-500.0,0.00056709,120]
[321150705,1711912261236,-500.0,0.00056709,120]
[321150706,1711912261246,-500.0,0.00056709,120]
[321150707,1711912261255,-500.0,0.00056709,120]
[321150708,1711912261266,-500.0,0.00056709,120]
[321150709,1711912261276,-500.0,0.00056709,120]
[321150710,1711912261286,-500.0,0.00056709,120]
[321150711,1711912261297,-500.0,0.00056709,120]
[321150712,1711912261308,-500.0,0.00056709,120]
[321150713,1711912261317,-584.52,0.00056712,120]
[321150714,1711912261327,-500.0,0.00056712,120]
[321150715,1711912261336,-500.0,0.00056712,120]
[321150716,1711912261345,-500.0,0.00056712,120]
[321150717,1711912261395,-544.28,0.00056712,120]
[321150718,1711912261404,-500.0,0.00056712,50]
[321150719,1711912261413,-500.0,0.00056712,120]
[321150720,1711912261422,-500.0,0.00056712,120]
[321150721,1711912261431,-640.67,0.00056712,120]
[321150722,1711912261443,-1467.9,0.00056712,120]
[321150723,1711912261453,-6764.27,0.00056712,120]
[321150724,1711912261462,-567.74,0.00056712,120]
[321150725,1711912261472,-500.0,0.00056712,120]
[321150726,1711912261482,-500.0,0.00056712,120]
[321150727,1711912261492,-860.07,0.00056712,120]
[321150728,1711912261502,-1192.99,0.00056712,120]
[321150729,1711912261512,-1249.36,0.00056712,21]
[321150730,1711912261521,-500.0,0.00056712,120]
[321150731,1711912261531,-500.0,0.00056712,120]
[321150732,1711912261540,-814.12,0.00056712,120]
[321150733,1711912261550,-500.0,0.00056712,120]
[321150734,1711912261560,-500.0,0.00056712,120]
[321150735,1711912261570,-617.6,0.00056712,120]
[321150736,1711912261580,-678.55,0.00056712,120]
[321150737,1711912261590,-500.0,0.00056712,120]
[321150738,1711912261599,-500.0,0.00056712,120]
[321150739,1711912261609,-648.14,0.00056712,120]
[321150740,1711912261619,-611.97,0.00056712,120]
[321150741,1711912261629,-500.0,0.00056712,120]
[321150742,1711912261640,-723.57,0.00056712,120]
[321150743,1711912261650,-955.76,0.00056712,120]
[321150744,1711912261660,-533.04,0.00056712,120]
[321150745,1711912261671,-1479.22,0.00056712,120]
[321150746,1711912261681,-500.0,0.00056712,120]
[321150747,1711912261693,-891.31,0.00056712,120]
[321150748,1711912261703,-2510.49,0.00056712,120]
[321150749,1711912261713,-500.0,0.00056712,120]
[321150750,1711912261723,-538.58217448,0.00056712,120]
[321150751,1711912261733,-1612.29,0.00056712,120]
[321150752,1711912261743,-2390.26,0.00056712,120]
[321150753,1711912261757,-500.0,0.00056712,120]
[321150754,1711912261767,-500.0,0.00056712,120]
[321150755,1711912261777,-500.0,0.00056712,120]
[321150756,1711912261787,-1950.2,0.00056712,120]
[321150757,1711912261796,-1183.67,0.00056712,120]
[321150758,1711912261806,-500.0,0.00056712,120]
[321150759,1711912261815,-1486.98,0.00056712,120]
[321150760,1711912261825,-769.12,0.00056712,120]
[321150761,1711912261835,-536.61,0.00056712,120]
[321150762,1711912261844,-500.0,0.00056712,120]
[321150763,1711912261854,-500.0,0.00056712,120]
[321150764,1711912261864,-541.06,0.00056712,120]
[321150765,1711912261874,-637.34,0.00056712,120]
[321150766,1711912261884,-949.35,0.00056712,120]
[321150767,1711912261895,-535.97,0.00056712,120]
[321150768,1711912261904,-1656.56,0.00056712,120]
[321150769,1711912261915,-500.0,0.00056712,120]
[321150770,1711912261924,-641.17,0.00056712,120]
[321150771,1711912261935,-501.73,0.00056712,120]
[321150772,1711912261945,-500.0,0.00056712,120]
[321150773,1711912261954,-848.71,0.00056712,120]
[321150774,1711912261964,-1686.96,0.00056712,120]
[321150775,1711912261974,-723.69,0.00056712,120]
[321150776,1711912261984,-503.53,0.00056712,120]
[321150777,1711912261993,-1403.52,0.00056712,120]
[321150778,1711912262003,-1181.38,0.00056712,120]
[321150779,1711912262012,-3493.9,0.00056712,120]
[321150780,1711912262022,-975.21,0.00056712,120]
[321150781,1711912262032,-806.03,0.00056712,120]
[321150782,1711912262042,-500.0,0.00056712,120]
[321150783,1711912262052,-6777.33,0.00056712,120]
[321150784,1711912262063,-3043.05,0.00056712,120]
[321150785,1711912262073,-500.0,0.00056712,120]
[321150786,1711912262083,-500.0,0.00056712,16]
[321150787,1711912262093,-5108.89,0.00056712,120]
[321150788,1711912262103,-3698.74,0.00056712,120]
[321150789,1711912262114,-500.0,0.00056712,120]
[321150790,1711912262124,-1483.74,0.00056712,120]
[321150791,1711912262135,-768.98,0.00056712,120]
[321150792,1711912262145,-500.0,0.00056712,120]
[321150793,1711912262156,-531.61,0.00056712,120]
[321150794,1711912262166,-631.59,0.00056712,120]
[321150795,1711912262177,-3249.07,0.00056712,120]
[321150796,1711912262189,-548.81,0.00056712,120]
[321150797,1711912262199,-1016.84,0.00056712,120]
[321150798,1711912262210,-916.96,0.00056712,120]
[321150799,1711912262219,-2060.57,0.00056712,120]
[321150800,1711912262230,-282.19,0.00056712,7]
[321150801,1711912262240,-381.46,0.00056712,120]
[321150802,1711912262252,-500.0,0.00056712,120]
[321150803,1711912262262,-500.0,0.00056712,120]
[321150804,1711912262272,-500.0,0.00056712,120]
[321150805,1711912262285,-500.0,0.00056712,120]
[321150806,1711912262295,-572.07,0.00056712,120]
[321150807,1711912262305,-1908.06,0.00056712,120]
[321150808,1711912262315,-1170.42,0.00056712,120]
[321150809,1711912262326,-3750.34,0.00056712,120]
[321150810,1711912262336,-500.0,0.00056712,120]
[321150811,1711912262346,-500.0,0.00056712,120]
[321150812,1711912262356,-706.75,0.00056712,120]
[321150813,1711912262365,-1737.44,0.00056712,120]
[321150814,1711912262375,-500.0,0.00056712,120]
[321150815,1711912262383,-4783.41,0.00056712,120]
[321150816,1711912262392,-2431.96,0.00056712,120]
[321150817,1711912262402,-570.4,0.00056712,120]
[321150818,1711912262411,-984.21,0.00056712,120]
[321150819,1711912262421,-4812.39,0.00056712,120]
[321150820,1711912262431,-500.0,0.00056712,120]
[321150821,1711912262442,-629.86,0.00056712,120]
[321150822,1711912262451,-515.53,0.00056712,120]
[321150823,1711912262460,-1392.38,0.00056712,120]
[321150824,1711912262469,-1049.1,0.00056712,120]
[321150825,1711912262478,-500.0,0.00056712,120]
[321150826,1711912262486,-500.0,0.00056712,120]
[321150827,1711912262496,-531.47,0.00056712,120]
[321150828,1711912262506,-2600.45,0.00056712,120]
[321150829,1711912262516,-511.03,0.00056712,120]
[321150830,1711912262527,-500.0,0.00056712,120]
[321150831,1711912262539,-3323.86,0.00056712,120]
[321150832,1711912262550,-9313.43,0.00056712,120]
[321150833,1711912262561,-506.98,0.00056712,120]
[321150834,1711912262571,-721.08,0.00056712,120]
[321150835,1711912262581,-185.79,0.0005677,15]
[321150836,1711912262591,-150.5,0.0005678,15]
[321150837,1711912262602,-150.5,0.0005679,15]
[321150838,1711912262612,-500.0,0.00056983,120]
[321150839,1711912262622,-500.0,0.00056983,120]
[321150840,1711912262631,-500.0,0.00056983,120]
[321150841,1711912262641,-500.0,0.00056983,120]
[321150842,1711912262651,-500.0,0.00056983,120]
[321150843,1711912262660,-323.49,0.00056983,120]
[321150844,1711912262670,-500.0,0.00056983,120]
[321150845,1711912262680,-500.0,0.00056983,120]
[321150846,1711912262692,-644.09937226,0.00056983,120]
[321150847,1711912262702,-500.0,0.00056983,120]
[321150848,1711912262713,-500.0,0.00056983,120]
[321150849,1711912262722,-500.0,0.00056983,120]
[321150850,1711912262732,-693.57,0.00056983,120]
[321150851,1711912262742,-500.0,0.00056983,120]
[321150852,1711912262753,-500.0,0.00056983,120]
[321150853,1711912262764,-733.82,0.00056983,120]
[321150854,1711912262774,-500.0,0.00056983,120]
[321150855,1711912262787,-602.97624819,0.00056983,120]
[321150856,1711912262798,-500.0,0.00056983,120]
[321150857,1711912262808,-500.0,0.00056983,120]
[321150858,1711912262818,-647.93,0.00056983,120]
[321150859,1711912262828,-684.47,0.00056983,120]
[321150860,1711912262839,-500.0,0.00056983,120]
[321150861,1711912262850,-500.0,0.00056983,120]
[321150862,1711912262860,-500.0,0.00056983,120]
[321150863,1711912262869,-500.0,0.00056983,120]
[321150864,1711912262879,-500.0,0.00056983,120]
[321150865,1711912262889,-600.94,0.00056983,120]
[321150866,1711912262899,-500.0,0.00056983,120]
[321150867,1711912262909,-500.0,0.00056983,120]
[321150868,1711912262918,-500.0,0.00056983,120]
[321150869,1711912262929,-500.0,0.00056983,120]
[321150870,1711912262943,-500.0,0.00056983,120]
[321150871,1711912262952,-500.0,0.00056983,120]
[321150872,1711912262961,-500.0,0.00056983,120]
[321150873,1711912262972,-186.082506,0.00056983,14]
[321150874,1711912262981,-500.0,0.00056983,120]
[321150875,1711912262991,-182.759332,0.00056983,120]
[321150876,1711912263001,-500.0,0.00056983,120]
[321150877,1711912263010,-500.0,0.00056983,120]
[321150878,1711912263020,-500.0,0.00056983,120]
[321150879,1711912263029,-500.0,0.00056983,120]
[321150880,1711912263039,-500.0,0.00056983,120]
[321150881,1711912263048,-239.66,0.00056983,120]
[321150882,1711912263058,-500.0,0.00056983,120]
[321150883,1711912263067,-500.0,0.00056983,120]
[321150884,1711912263077,-500.0,0.00056983,120]
[321150885,1711912263086,-500.0,0.00056983,120]
[321150886,1711912263095,-764.27,0.00056985,120]
[321150887,1711912263105,-500.0,0.00056986,120]
[321150888,1711912263114,-500.0,0.00056986,120]
[321150889,1711912263123,-500.0,0.00056986,120]
[321150890,1711912263133,-544.28,0.00056986,120]
[321150891,1711912263142,-500.0,0.00056986,50]
[321150892,1711912263151,-500.0,0.00056986,120]
[321150893,1711912263161,-559.98,0.00056986,120]
[321150894,1711912263170,-640.67,0.00056986,120]
[321150895,1711912263180,-1467.9,0.00056986,120]
[321150896,1711912263191,-6764.27,0.00056986,120]
[321150897,1711912263201,-567.74,0.00056986,120]
[321150898,1711912263212,-500.0,0.00056986,120]
[321150899,1711912263222,-500.0,0.00056986,120]
[321150900,1711912263233,-860.07,0.00056986,120]
[321150901,1711912263242,-1192.99,0.00056986,120]
[321150902,1711912263251,-1249.36,0.00056986,21]
[321150903,1711912263260,-500.0,0.00056986,120]
[321150904,1711912263271,-500.0,0.00056986,120]
[321150905,1711912263281,-814.12,0.00056986,120]
[321150906,1711912263292,-500.0,0.00056986,120]
[321150907,1711912263302,-500.0,0.00056986,120]
[321150908,1711912263313,-617.6,0.00056986,120]
[321150909,1711912263323,-678.55,0.00056986,120]
[321150910,1711912263333,-500.0,0.00056986,120]
[321150911,1711912263344,-500.0,0.00056986,120]
[321150912,1711912263355,-648.14,0.00056986,120]
[321150913,1711912263365,-611.97,0.00056986,120]
[321150914,1711912263376,-500.0,0.00056986,120]
[321150915,1711912263386,-723.57,0.00056986,120]
[321150916,1711912263396,-955.76,0.00056986,120]
[321150917,1711912263406,-533.04,0.00056986,120]
[321150918,1711912263416,-1479.22,0.00056986,120]
[321150919,1711912263426,-500.0,0.00056986,120]
[321150920,1711912263438,-891.31,0.00056986,120]
[321150921,1711912263449,-2510.49,0.00056986,120]
[321150922,1711912263460,-500.0,0.00056986,120]
[321150923,1711912263470,-1612.29,0.00056986,120]
[321150924,1711912263481,-2390.26,0.00056986,120]
[321150925,1711912263492,-500.0,0.00056986,120]
[321150926,1711912263502,-500.0,0.00056986,120]
[321150927,1711912263511,-500.0,0.00056986,120]
[321150928,1711912263523,-1950.2,0.00056986,120]
[321150929,1711912263535,-1183.67,0.00056986,120]
[321150930,1711912263545,-500.0,0.00056986,120]
[321150931,1711912263556,-1486.98,0.00056986,120]
[321150932,1711912263566,-769.12,0.00056986,120]
[321150933,1711912263575,-536.61,0.00056986,120]
[321150934,1711912263586,-500.0,0.00056986,120]
[321150935,1711912263595,-500.0,0.00056986,120]
[321150936,1711912263605,-541.06,0.00056986,120]
[321150937,1711912263614,-637.34,0.00056986,120]
[321150938,1711912263625,-949.35,0.00056986,120]
[321150939,1711912263635,-535.97,0.00056986,120]
[321150940,1711912263645,-1656.56,0.00056986,120]
[321150941,1711912263654,-500.0,0.00056986,120]
[321150942,1711912263664,-641.17,0.00056986,120]
[321150943,1711912263673,-501.73,0.00056986,120]
[321150944,1711912263683,-500.0,0.00056986,120]
[321150945,1711912263694,-848.71,0.00056986,120]
[321150946,1711912263703,-1686.96,0.00056986,120]
[321150947,1711912263713,-723.69,0.00056986,120]
[321150948,1711912263723,-503.53,0.00056986,120]
[321150949,1711912263733,-1403.52,0.00056986,120]
[321150950,1711912263742,-1181.38,0.00056986,120]
[321150951,1711912263756,-3493.9,0.00056986,120]
[321150952,1711912263765,-975.21,0.00056986,120]
[321150953,1711912263774,-806.03,0.00056986,120]
[321150954,1711912263784,-500.0,0.00056986,120]
[321150955,1711912263795,-6777.33,0.00056986,120]
[321150956,1711912263804,-3043.05,0.00056986,120]
[321150957,1711912263814,-500.0,0.00056986,120]
[321150958,1711912263826,-409.51,0.00056986,16]
[321150959,1711912263836,-5108.89,0.00056986,120]
[321150960,1711912263846,-3698.74,0.00056986,120]
[321150961,1711912263855,-1483.74,0.00056986,120]
[321150962,1711912263866,-768.98,0.00056986,120]
[321150963,1711912263876,-500.0,0.00056986,120]
[321150964,1711912263885,-531.61,0.00056986,120]
[321150965,1711912263895,-631.59,0.00056986,120]
[321150966,1711912263906,-3249.07,0.00056986,120]
[321150967,1711912263916,-548.81,0.00056986,120]
[321150968,1711912263926,-1016.84,0.00056986,120]
[321150969,1711912263936,-916.96,0.00056986,120]
[321150970,1711912263946,-2060.57,0.00056986,120]
[321150971,1711912263957,-500.0,0.00056986,120]
[321150972,1711912263966,-500.0,0.00056986,120]
[321150973,1711912263975,-500.0,0.00056986,120]
[321150974,1711912263985,-393.414856,0.00056986,120]
[321150975,1711912263994,-500.0,0.00056986,120]
[321150976,1711912264003,-572.07,0.00056986,120]
[321150977,1711912264013,-1908.06,0.00056986,120]
[321150978,1711912264023,-393.414856,0.00056986,120]
[321150979,1711912264033,-1170.42,0.00056986,120]
[321150980,1711912264042,-3750.34,0.00056986,120]
[321150981,1711912264052,-500.0,0.00056986,120]
[321150982,1711912264061,-151.0,0.00056986,120]
[321150983,1711912264071,-500.0,0.00056986,120]
[321150984,1711912264081,-706.75,0.00056986,120]
[321150985,1711912264092,-1737.44,0.00056986,120]
[321150986,1711912264101,-500.0,0.00056986,120]
[321150987,1711912264113,-4783.41,0.00056986,120]
[321150988,1711912264123,-2431.96,0.00056986,120]
[321150989,1711912264133,-570.4,0.00056986,120]
[321150990,1711912264143,-984.21,0.00056986,120]
[321150991,1711912264153,-4812.39,0.00056986,120]
[321150992,1711912264162,-500.0,0.00056986,120]
[321150993,1711912264172,-629.86,0.00056986,120]
[321150994,1711912264183,-515.53,0.00056986,120]
[321150995,1711912264194,-1392.38,0.00056986,120]
[321150996,1711912264203,-1049.1,0.00056986,120]
[321150997,1711912264214,-500.0,0.00056986,120]
[321150998,1711912264224,-500.0,0.00056986,120]
[321150999,1711912264234,-531.47,0.00056986,120]
[321151000,1711912264243,-2600.45,0.00056986,120]
[321151001,1711912264253,-511.03,0.00056986,120]
[321151002,1711912264264,-500.0,0.00056986,120]
[321151003,1711912264274,-3323.86,0.00056986,120]
[321151004,1711912264283,-9313.43,0.00056986,120]
[321151005,1711912264292,-506.98,0.00056986,120]
[321151006,1711912264302,-721.08,0.00056986,120]
[321151007,1711912264311,-151.0,0.00056986,120]
[321151008,1711912264320,-262.84974905,0.000572,57]
[321151009,1711912264330,-297.93137574,0.00057257,120]
[321151010,1711912264339,-500.0,0.00057257,120]
[321151011,1711912264348,-500.0,0.00057257,120]
[321151012,1711912264357,-500.0,0.00057257,120]